fUST/lending_fUST_20240220
["ID","MTS","AMOUNT","RATE_DAILY","PERIOD"]
[314520043,1708402246688,-514.95706502,0.00022191,2]
[314520044,1708402246698,-500.0,0.00022191,2]
[314520045,1708402246708,-500.0,0.00022191,2]
[314520046,1708402246718,-500.0,0.00022191,2]
[314520047,1708402246728,-500.0,0.00022191,2]
[314520048,1708402246738,-500.0,0.00022191,2]
[314520049,1708402246747,-527.99959248,0.00022191,2]
[314520050,1708402246757,-613.36,0.00022191,2]
[314520051,1708402246767,-500.0,0.00022191,2]
[314520052,1708402246778,-646.7,0.00022191,2]
[314520053,1708402246788,-500.0,0.00022191,2]
[314520054,1708402246797,-500.0,0.00022191,2]
[314520055,1708402246807,-1369.71,0.00022191,2]
[314520056,1708402246817,-500.0,0.00022191,2]
[314520057,1708402246826,-500.0,0.00022191,2]
[314520058,1708402246836,-500.0,0.00022191,2]
[314520059,1708402246851,-607.48231245,0.00022191,2]
[314520060,1708402246861,-500.0,0.00022191,2]
[314520061,1708402246871,-500.0,0.00022191,2]
[314520062,1708402246882,-567.97386104,0.00022191,2]
[314520063,1708402246894,-500.0,0.00022191,2]
[314520064,1708402246904,-1164.57,0.00022191,2]
[314520065,1708402246914,-500.0,0.00022191,2]
[314520066,1708402246924,-500.0,0.00022191,2]
[314520067,1708402246935,-522.64,0.00022191,2]
[314520068,1708402246944,-500.0,0.00022191,2]
[314520069,1708402246953,-500.0,0.00022191,2]
[314520070,1708402246963,-500.0,0.00022191,2]
[314520071,1708402246972,-581.74,0.00022191,2]
[314520072,1708402246983,-500.0,0.00022191,2]
[314520073,1708402246992,-500.0,0.00022191,2]
[314520074,1708402247002,-500.0,0.00022191,2]
[314520075,1708402247012,-643.79,0.00022191,2]
[314520076,1708402247022,-500.0,0.00022191,2]
[314520077,1708402247031,-500.0,0.00022191,2]
[314520078,1708402247041,-500.0,0.00022191,2]
[314520079,1708402247051,-743.15,0.00022191,2]
[314520080,1708402247061,-500.0,0.00022191,2]
[314520081,1708402247070,-500.0,0.00022191,2]
[314520082,1708402247080,-500.0,0.00022191,2]
[314520083,1708402247090,-500.0,0.00022191,2]
[314520084,1708402247101,-500.0,0.00022191,2]
[314520085,1708402247113,-500.0,0.00022191,2]
[314520086,1708402247122,-1155.22,0.00022191,2]
[314520087,1708402247132,-722.09,0.00022191,2]
[314520088,1708402247141,-500.0,0.00022191,2]
[314520089,1708402247151,-395.53719092,0.00022191,2]
[314520090,1708402247162,-500.0,0.00022191,2]
[314520091,1708402247172,-500.0,0.00022191,2]
[314520092,1708402247181,-1505.47,0.00022191,2]
[314520093,1708402247191,-6063.56,0.00022191,2]
[314520094,1708402247200,-500.0,0.00022191,2]
[314520095,1708402247209,-500.0,0.00022191,2]
[314520096,1708402247219,-2841.34,0.00022191,2]
[314520097,1708402247229,-615.11,0.00022191,2]
[314520098,1708402247239,-500.0,0.00022191,2]
[314520099,1708402247248,-500.0,0.00022191,2]
[314520100,1708402247258,-664.66,0.00022191,2]
[314520101,1708402247268,-500.0,0.00022191,2]
[314520102,1708402247277,-500.0,0.00022191,2]
[314520103,1708402247287,-500.0,0.00022191,2]
[314520104,1708402247297,-1123.7,0.00022191,2]
[314520105,1708402247307,-626.48,0.00022191,2]
[314520106,1708402247316,-500.0,0.00022191,2]
[314520107,1708402247326,-792.12,0.00022191,2]
[314520108,1708402247335,-500.0,0.00022191,2]
[314520109,1708402247345,-500.0,0.00022191,2]
[314520110,1708402247356,-500.0,0.00022191,2]
[314520111,1708402247366,-686.73,0.00022191,2]
[314520112,1708402247375,-500.0,0.00022191,2]
[314520113,1708402247385,-500.0,0.00022191,2]
[314520114,1708402247394,-500.0,0.00022191,2]
[314520115,1708402247404,-500.0,0.00022191,2]
[314520116,1708402247413,-500.0,0.00022191,2]
[314520117,1708402247423,-587.63,0.00022191,2]
[314520118,1708402247432,-398.10393669,0.00022191,2]
[314520119,1708402247442,-500.0,0.00022191,2]
[314520120,1708402247451,-500.0,0.00022191,2]
[314520121,1708402247461,-500.0,0.00022191,2]
[314520122,1708402247471,-171.58539314,0.00022191,2]
[314520123,1708402247480,-500.0,0.00022191,2]
[314520124,1708402247489,-500.0,0.00022191,2]
[314520125,1708402247499,-500.0,0.00022191,2]
[314520126,1708402247509,-500.0,0.00022191,2]
[314520127,1708402247518,-500.0,0.00022191,2]
[314520128,1708402247528,-573.64,0.00022191,2]
[314520129,1708402247538,-504.92,0.00022191,2]
[314520130,1708402247548,-500.0,0.00022191,2]
[314520131,1708402247558,-500.0,0.00022191,2]
[314520132,1708402247568,-500.0,0.00022191,2]
[314520133,1708402247582,-500.0,0.00022191,2]
[314520134,1708402247592,-500.0,0.00022191,2]
[314520135,1708402247602,-500.0,0.00022191,2]
[314520136,1708402247611,-265.14873351,0.00022191,2]
[314520137,1708402247621,-500.0,0.00022191,2]
[314520138,1708402247630,-500.0,0.00022191,2]
[314520139,1708402247640,-168.92380778,0.00022191,2]
[314520140,1708402247650,-500.0,0.00022191,2]
[314520141,1708402247660,-753.03,0.00022191,2]
[314520142,1708402247669,-500.0,0.00022191,2]
[314520143,1708402247679,-1553.33,0.00022191,2]
[314520144,1708402247689,-506.2,0.00022191,2]
[314520145,1708402247698,-2695.0,0.00022191,2]
[314520146,1708402247708,-1364.78,0.00022191,2]
[314520147,1708402247718,-521.35847684,0.00022191,2]
[314520148,1708402247727,-617.79,0.00022191,2]
[314520149,1708402247737,-500.0,0.00022191,2]
[314520150,1708402247746,-500.0,0.00022191,2]
[314520151,1708402247755,-832.65,0.00022191,2]
[314520152,1708402247764,-512.55610441,0.00022191,2]
[314520153,1708402247774,-500.0,0.00022191,2]
[314520154,1708402247784,-500.0,0.00022191,2]
[314520155,1708402247793,-500.0,0.00022191,2]
[314520156,1708402247803,-394.39198445,0.00022191,2]
[314520157,1708402247813,-500.0,0.00022191,2]
[314520158,1708402247822,-155.02551061,0.00022191,2]
[314520159,1708402247832,-500.0,0.00022191,2]
[314520160,1708402247844,-512.67746296,0.00022191,2]
[314520161,1708402247856,-500.0,0.00022191,2]
[314520162,1708402247865,-481.74963296,0.00022191,2]
[314520163,1708402247875,-1344.56,0.00022191,2]
[314520164,1708402247886,-500.0,0.00022191,2]
[314520165,1708402247895,-500.0,0.00022191,2]
[314520166,1708402247905,-500.0,0.00022191,2]
[314520167,1708402247915,-2453.48,0.00022191,2]
[314520168,1708402247926,-500.0,0.00022191,2]
[314520169,1708402247936,-500.0,0.00022191,2]
[314520170,1708402247947,-500.0,0.00022191,2]
[314520171,1708402247957,-977.64,0.00022191,2]
[314520172,1708402247966,-500.0,0.00022191,2]
[314520173,1708402247975,-500.0,0.00022191,2]
[314520174,1708402247985,-526.57,0.00022191,2]
[314520175,1708402247995,-500.0,0.00022191,2]
[314520176,1708402248005,-604.16828303,0.00022191,2]
[314520177,1708402248014,-669.33,0.00022191,2]
[314520178,1708402248023,-500.0,0.00022191,2]
[314520179,1708402248033,-500.0,0.00022191,2]
[314520180,1708402248042,-500.0,0.00022191,2]
[314520181,1708402248052,-500.0,0.00022191,2]
[314520182,1708402248061,-500.0,0.00022191,2]
[314520183,1708402248071,-500.0,0.00022191,2]
[314520184,1708402248080,-500.0,0.00022191,2]
[314520185,1708402248089,-500.0,0.00022191,2]
[314520186,1708402248098,-500.0,0.00022191,2]
[314520187,1708402248111,-500.0,0.00022191,2]
[314520188,1708402248120,-500.0,0.00022191,2]
[314520189,1708402248129,-500.0,0.00022191,2]
[314520190,1708402248139,-556.35,0.00022191,2]
[314520191,1708402248148,-500.0,0.00022191,2]
[314520192,1708402248158,-509.03,0.00022191,2]
[314520193,1708402248167,-667.09,0.00022191,2]
[314520194,1708402248177,-500.0,0.00022191,2]
[314520195,1708402248186,-500.0,0.00022191,2]
[314520196,1708402248195,-4784.76,0.00022191,2]
[314520197,1708402248204,-500.0,0.00022191,2]
[314520198,1708402248213,-2311.09,0.00022191,2]
[314520199,1708402248222,-500.0,0.00022191,2]
[314520200,1708402248232,-764.75,0.00022191,2]
[314520201,1708402248241,-500.0,0.00022191,2]
[314520202,1708402248250,-500.0,0.00022191,2]
[314520203,1708402248260,-546.77973092,0.00022191,2]
[314520204,1708402248269,-5239.92,0.00022191,2]
[314520205,1708402248278,-500.0,0.00022191,2]
[314520206,1708402248287,-500.0,0.00022191,2]
[314520207,1708402248296,-500.0,0.00022191,2]
[314520208,1708402248305,-500.0,0.00022191,2]
[314520209,1708402248315,-500.0,0.00022191,2]
[314520210,1708402248324,-500.0,0.00022191,2]
[314520211,1708402248333,-947.63,0.00022191,2]
[314520212,1708402248343,-2752.98,0.00022191,2]
[314520213,1708402248352,-500.0,0.00022191,2]
[314520214,1708402248361,-500.0,0.00022191,2]
[314520215,1708402248371,-433.86591432,0.00022191,2]
[314520216,1708402248380,-500.0,0.00022191,2]
[314520217,1708402248389,-500.0,0.00022191,2]
[314520218,1708402248433,-500.0,0.00022191,2]
[314520219,1708402248443,-500.0,0.00022191,2]
[314520220,1708402248452,-500.0,0.00022191,2]
[314520221,1708402248461,-500.0,0.00022191,2]
[314520222,1708402248470,-500.0,0.00022191,2]
[314520223,1708402248479,-500.0,0.00022191,2]
[314520224,1708402248488,-1000.0,0.00022191,2]
[314520225,1708402248497,-356.92342532,0.00022191,2]
[314520226,1708402248506,-27568.43,0.00022191,2]
[314520227,1708402248515,-500.0,0.00022191,2]
[314520228,1708402248524,-500.0,0.00022191,2]
[314520229,1708402248534,-500.0,0.00022191,2]
[314520230,1708402248543,-500.0,0.00022191,2]
[314520231,1708402248552,-200.0,0.00022191,2]
[314520232,1708402248561,-500.0,0.00022191,2]
[314520233,1708402248570,-1470.64,0.00022191,2]
[314520234,1708402248578,-500.0,0.00022191,2]
[314520235,1708402248587,-823.83,0.00022191,2]
[314520236,1708402248597,-692.13,0.00022191,2]
[314520237,1708402248607,-500.0,0.00022191,2]
[314520238,1708402248617,-500.0,0.00022191,2]
[314520239,1708402248626,-18207.2,0.00022191,2]
[314520240,1708402248636,-500.0,0.00022191,2]
[314520241,1708402248644,-4150.03,0.00022191,2]
[314520242,1708402248653,-500.0,0.00022191,2]
[314520243,1708402248662,-500.0,0.00022191,2]
[314520244,1708402248671,-1180.37,0.00022191,2]
[314520245,1708402248680,-500.0,0.00022191,2]
[314520246,1708402248689,-3775.44,0.00022191,2]
[314520247,1708402248698,-519.02,0.00022191,2]
[314520248,1708402248707,-500.0,0.00022191,2]
[314520249,1708402248716,-500.0,0.00022191,2]
[314520250,1708402248725,-500.0,0.00022191,2]
[314520251,1708402248734,-3765.2,0.00022191,2]
[314520252,1708402248743,-500.0,0.00022191,2]
[314520253,1708402248752,-500.0,0.00022191,2]
[314520254,1708402248761,-1043.35,0.00022191,2]
[314520255,1708402248770,-2834.67,0.00022191,2]
[314520256,1708402248779,-5058.64,0.00022191,2]
[314520257,1708402248788,-500.0,0.00022191,2]
[314520258,1708402248798,-151.0,0.00022191,2]
[314520259,1708402248807,-500.0,0.00022191,2]
[314520260,1708402248816,-500.0,0.00022191,2]
[314520261,1708402248825,-500.0,0.00022191,2]
[314520262,1708402248834,-25085.55,0.00022191,2]
[314520263,1708402248844,-500.0,0.00022191,2]
[314520264,1708402248857,-633.41,0.00022191,2]
[314520265,1708402248866,-500.0,0.00022191,2]
[314520266,1708402248876,-500.0,0.00022191,2]
[314520267,1708402248885,-13039.71,0.00022191,2]
[314520268,1708402248893,-500.0,0.00022191,2]
[314520269,1708402248903,-500.0,0.00022191,2]
[314520270,1708402248912,-35623.88,0.00022191,2]
[314520271,1708402248921,-500.0,0.00022191,2]
[314520272,1708402248931,-500.0,0.00022191,2]
[314520273,1708402248940,-1318.63,0.00022191,2]
[314520274,1708402248949,-17750.11,0.00022191,2]
[314520275,1708402248958,-500.0,0.00022191,2]
[314520276,1708402248967,-509.92662312,0.00022191,2]
[314520277,1708402248976,-500.0,0.00022191,2]
[314520278,1708402248985,-500.0,0.00022191,2]
[314520279,1708402248995,-500.0,0.00022191,2]
[314520280,1708402249004,-604.35,0.00022191,2]
[314520281,1708402249013,-500.0,0.00022191,2]
[314520282,1708402249023,-500.0,0.00022191,2]
[314520283,1708402249032,-500.0,0.00022191,2]
[314520284,1708402249041,-4570.3,0.00022191,2]
[314520285,1708402249050,-500.0,0.00022191,2]
[314520286,1708402249059,-668.64,0.00022191,2]
[314520287,1708402249068,-500.0,0.00022191,2]
[314520288,1708402249077,-500.0,0.00022191,2]
[314520289,1708402249087,-500.0,0.00022191,2]
[314520290,1708402249096,-500.0,0.00022191,2]
[314520291,1708402249105,-41856.52,0.00022191,2]
[314520292,1708402249115,-500.0,0.00022191,2]
[314520293,1708402249125,-500.0,0.00022191,2]
[314520294,1708402249134,-2652.34,0.00022191,2]
[314520295,1708402249143,-500.0,0.00022191,2]
[314520296,1708402249152,-1288.82,0.00022191,2]
[314520297,1708402249161,-614.53,0.00022191,2]
[314520298,1708402249170,-500.0,0.00022191,2]
[314520299,1708402249179,-500.0,0.00022191,2]
[314520300,1708402249188,-500.0,0.00022191,2]
[314520301,1708402249197,-3969.06,0.00022191,2]
[314520302,1708402249206,-945.09,0.00022191,2]
[314520303,1708402249215,-1906.41,0.00022191,2]
[314520304,1708402249224,-500.0,0.00022191,2]
[314520305,1708402249233,-3731.63,0.00022191,2]
[314520306,1708402249243,-806.25,0.00022191,2]
[314520307,1708402249253,-500.0,0.00022191,2]
[314520308,1708402249262,-500.0,0.00022191,2]
[314520309,1708402249272,-944.16,0.00022191,2]
[314520310,1708402249281,-500.0,0.00022191,2]
[314520311,1708402249290,-500.0,0.00022191,2]
[314520312,1708402249300,-500.0,0.00022191,2]
[314520313,1708402249309,-500.0,0.00022191,2]
[314520314,1708402249318,-500.0,0.00022191,2]
[314520315,1708402249327,-477.21577189,0.00022191,2]
[314520316,1708402249336,-1532.93,0.00022191,2]
[314520317,1708402249346,-500.0,0.00022191,2]
[314520318,1708402249355,-500.0,0.00022191,2]
[314520319,1708402249365,-500.0,0.00022191,2]
[314520320,1708402249374,-1335.27,0.00022191,2]
[314520321,1708402249383,-500.0,0.00022191,2]
[314520322,1708402249393,-500.0,0.00022191,2]
[314520323,1708402249403,-500.0,0.00022191,2]
[314520324,1708402249413,-674.07,0.00022191,2]
[314520325,1708402249422,-1437.35,0.00022191,2]
[314520326,1708402249432,-500.0,0.00022191,2]
[314520327,1708402249441,-500.0,0.00022191,2]
[314520328,1708402249451,-708.75,0.00022191,2]
[314520329,1708402249460,-500.0,0.00022191,2]
[314520330,1708402249470,-717.93,0.00022191,2]
[314520331,1708402249479,-3349.56,0.00022191,2]
[314520332,1708402249489,-831.5,0.00022191,2]
[314520333,1708402249498,-7169.62,0.00022191,2]
[314520334,1708402249507,-503.9168682,0.00022191,2]
[314520335,1708402249517,-300.0,0.00022331,2]
[314520336,1708402249528,-500.0,0.00022465,2]
[314520337,1708402249538,-5548.54778231,0.00022465,2]
[314520338,1708402250226,-323.47,0.00020061,3]
[314520339,1708402250235,-621.08221769,0.00022465,2]
[314520340,1708402250244,-500.0,0.00022465,2]
[314520341,1708402250254,-497.80845484,0.00022465,2]
[314520342,1708402250263,-500.0,0.00022465,2]
[314520343,1708402250272,-500.0,0.00022465,2]
[314520344,1708402250280,-167.19926347,0.00022465,2]
[314520647,1708403433961,-273.64532949,0.0001901,2]
[314520649,1708403433971,-9629.0125691,0.00019011,2]
[314520651,1708403433980,-218.264053,0.00019015,2]
[314520653,1708403433988,-169.121661,0.00019178,2]
[314520655,1708403433997,-925.537554,0.00019671,2]
[314520657,1708403434007,-171.81213749,0.00019991,2]
[314520659,1708403434015,-5000.0,0.00020071,2]
[314520661,1708403434024,-5000.0,0.00020071,2]
[314520663,1708403434033,-219.56900112,0.00020091,2]
[314520665,1708403434043,-269.56,0.00020116,3]
[314520667,1708403434052,-5000.0,0.00020126,2]
[314520669,1708403434060,-4236.52771659,0.00020126,2]
[314520798,1708403438317,-224.63,0.00020116,3]
[314520799,1708403438327,-763.47228341,0.00020126,2]
[314520800,1708403438337,-5000.0,0.00020126,2]
[314520801,1708403438347,-5000.0,0.00020126,2]
[314520802,1708403438357,-14856.90108139,0.00020126,2]
[314520803,1708403438366,-5000.0,0.00020126,2]
[314520804,1708403438376,-5000.0,0.00020126,2]
[314520806,1708403438385,-5000.0,0.00020126,2]
[314520808,1708403438396,-5000.0,0.00020126,2]
[314520810,1708403438405,-5000.0,0.00020126,2]
[314520812,1708403438414,-6825.758394,0.00020126,2]
[314520814,1708403438424,-5000.0,0.00020126,2]
[314520816,1708403438433,-5000.0,0.00020126,2]
[314520818,1708403438443,-5000.0,0.00020126,2]
[314520820,1708403438452,-5000.0,0.00020126,2]
[314520822,1708403438461,-3372.72127009,0.00020126,2]
[314520824,1708403438470,-1622.84311064,0.00020126,2]
[314520826,1708403438479,-50000.0,0.00020184,2]
[314520828,1708403438489,-50000.0,0.00020327,2]
[314520830,1708403438498,-500.0,0.00020822,2]
[314520832,1708403438509,-500.0,0.00020822,2]
[314520833,1708403438518,-500.0,0.00020822,2]
[314520834,1708403438528,-500.0,0.00020822,2]
[314520835,1708403438540,-500.0,0.00020822,2]
[314520836,1708403438549,-397.49142812,0.00020822,2]
[314520837,1708403438559,-553.27737417,0.00020822,2]
[314520838,1708403438568,-500.0,0.00020822,2]
[314520839,1708403438578,-181.0279602,0.00021915,2]
[314520840,1708403438588,-289.8323,0.00021916,2]
[314520841,1708403438597,-500.0,0.00021917,2]
[314520842,1708403438606,-500.0,0.00021917,2]
[314520843,1708403438615,-271.90117501,0.00021917,2]
[314520844,1708403438625,-500.0,0.00021917,2]
[314520846,1708403438634,-500.0,0.00021917,2]
[314520847,1708403438644,-500.0,0.00021917,2]
[314520849,1708403438653,-500.0,0.00021917,2]
[314520850,1708403438662,-500.0,0.00021917,2]
[314520851,1708403438671,-500.0,0.00021917,2]
[314520852,1708403438681,-500.0,0.00021917,2]
[314520853,1708403438691,-500.0,0.00021917,2]
[314520854,1708403438701,-1444.35,0.00021917,2]
[314520855,1708403438710,-500.0,0.00021917,2]
[314520856,1708403438719,-612.84,0.00021917,2]
[314520857,1708403438729,-500.0,0.00021917,2]
[314520858,1708403438738,-500.0,0.00021917,2]
[314520859,1708403438747,-500.0,0.00021917,2]
[314520860,1708403438757,-500.0,0.00021917,2]
[314520861,1708403438766,-592.81,0.00021917,2]
[314520862,1708403438776,-500.0,0.00021917,2]
[314520863,1708403438785,-500.0,0.00021917,2]
[314520864,1708403438797,-500.0,0.00021917,2]
[314520865,1708403438806,-1067.53,0.00021917,2]
[314520866,1708403438815,-500.0,0.00021917,2]
[314520867,1708403438826,-500.0,0.00021917,2]
[314520868,1708403438835,-500.0,0.00021917,2]
[314520869,1708403438844,-500.0,0.00021917,2]
[314520870,1708403438854,-500.0,0.00021917,2]
[314520871,1708403438864,-500.0,0.00021917,2]
[314520872,1708403438873,-590.14,0.00021917,2]
[314520873,1708403438882,-500.0,0.00021917,2]
[314520875,1708403438892,-500.0,0.00021917,2]
[314520877,1708403438902,-500.0,0.00021917,2]
[314520879,1708403438913,-500.0,0.00021917,2]
[314520881,1708403438923,-500.0,0.00021917,2]
[314520883,1708403438933,-661.91,0.00021917,2]
[314520885,1708403438942,-546.6534799,0.00021917,2]
[314520887,1708403438952,-500.0,0.00021917,2]
[314520889,1708403438962,-368.49630674,0.00021917,2]
[314520891,1708403438971,-500.0,0.00021917,2]
[314520893,1708403438980,-155.5648918,0.00021917,2]
[314520895,1708403438990,-500.0,0.00021917,2]
[314520897,1708403438999,-598.33769882,0.00021917,2]
[314520899,1708403439008,-500.0,0.00021917,2]
[314520901,1708403439017,-500.0,0.00021917,2]
[314520903,1708403439027,-528.36434061,0.00021917,2]
[314520905,1708403439036,-500.0,0.00021917,2]
[314520907,1708403439045,-500.0,0.00021917,2]
[314520909,1708403439055,-500.0,0.00021917,2]
[314520911,1708403439065,-500.0,0.00021917,2]
[314520913,1708403439075,-500.0,0.00021917,2]
[314520915,1708403439084,-500.0,0.00021917,2]
[314520917,1708403439094,-500.0,0.00021917,2]
[314520919,1708403439103,-500.0,0.00021917,2]
[314520921,1708403439112,-500.0,0.00021917,2]
[314520923,1708403439122,-500.0,0.00021917,2]
[314520925,1708403439131,-500.0,0.00021917,2]
[314520927,1708403439140,-500.0,0.00021917,2]
[314520929,1708403439149,-636.97,0.00021917,2]
[314520931,1708403439159,-500.0,0.00021917,2]
[314520933,1708403439168,-500.0,0.00021917,2]
[314520935,1708403439178,-641.64302008,0.00021917,2]
[314520938,1708403439187,-726.11,0.00021917,2]
[314520940,1708403439197,-368.18852702,0.00021917,2]
[314520942,1708403439207,-616.48012052,0.00021917,2]
[314520944,1708403439219,-721.65,0.00021917,2]
[314520946,1708403439228,-500.0,0.00021917,2]
[314520948,1708403439237,-500.0,0.00021917,2]
[314520950,1708403439246,-500.0,0.00021917,2]
[314520952,1708403439256,-500.0,0.00021917,2]
[314520954,1708403439266,-500.0,0.00021917,2]
[314520956,1708403439275,-500.0,0.00021917,2]
[314520975,1708403439440,-570.96925073,0.00021917,2]
[314520977,1708403439450,-500.0,0.00021917,2]
[314520979,1708403439459,-500.0,0.00021917,2]
[314520981,1708403439468,-500.0,0.00021917,2]
[314520983,1708403439477,-500.0,0.00021917,2]
[314520985,1708403439486,-500.0,0.00021917,2]
[314520987,1708403439494,-500.0,0.00021917,2]
[314520989,1708403439503,-500.0,0.00021917,2]
[314520991,1708403439512,-500.0,0.00021917,2]
[314520993,1708403439521,-500.0,0.00021917,2]
[314520995,1708403439530,-500.0,0.00021917,2]
[314520997,1708403439540,-500.0,0.00021917,2]
[314520999,1708403439550,-500.0,0.00021917,2]
[314521001,1708403439559,-500.0,0.00021917,2]
[314521003,1708403439569,-500.0,0.00021917,2]
[314521005,1708403439578,-500.0,0.00021917,2]
[314521006,1708403439587,-500.0,0.00021917,2]
[314521008,1708403439597,-500.0,0.00021917,2]
[314521011,1708403439606,-500.0,0.00021917,2]
[314521012,1708403439615,-500.0,0.00021917,2]
[314521015,1708403439625,-500.0,0.00021917,2]
[314521017,1708403439634,-500.0,0.00021917,2]
[314521019,1708403439643,-213.97,0.00021917,2]
[314521021,1708403439652,-500.0,0.00021917,2]
[314521023,1708403439661,-500.0,0.00021917,2]
[314521025,1708403439670,-573.64,0.00021917,2]
[314521027,1708403439680,-500.0,0.00021917,2]
[314521028,1708403439689,-500.0,0.00021917,2]
[314521030,1708403439698,-1076.88,0.00021917,2]
[314521033,1708403439708,-505.59237559,0.00021917,2]
[314521035,1708403439717,-500.0,0.00021917,2]
[314521037,1708403439726,-500.0,0.00021917,2]
[314521038,1708403439735,-486.42933984,0.00021917,2]
[314521040,1708403439744,-500.0,0.00021917,2]
[314521043,1708403439754,-500.0,0.00021917,2]
[314521045,1708403439764,-1488.61,0.00021917,2]
[314521047,1708403439774,-500.0,0.00021917,2]
[314521049,1708403439783,-500.0,0.00021917,2]
[314521051,1708403439792,-797.96,0.00021917,2]
[314521053,1708403439801,-500.0,0.00021917,2]
[314521055,1708403439810,-500.0,0.00021917,2]
[314521057,1708403439819,-592.05,0.00021917,2]
[314521059,1708403439829,-2582.71,0.00021917,2]
[314521060,1708403439838,-500.0,0.00021917,2]
[314521063,1708403439847,-500.2659361,0.00021917,2]
[314521065,1708403439857,-187.0489976,0.00021917,2]
[314521066,1708403439866,-500.0,0.00021917,2]
[314521068,1708403439875,-500.0,0.00021917,2]
[314521071,1708403439884,-500.0,0.00021917,2]
[314521073,1708403439894,-500.0,0.00021917,2]
[314521074,1708403439903,-500.0,0.00021917,2]
[314521077,1708403439913,-500.0,0.00021917,2]
[314521079,1708403439922,-500.0,0.00021917,2]
[314521081,1708403439931,-500.0,0.00021917,2]
[314521083,1708403439940,-500.0,0.00021917,2]
[314521085,1708403439949,-317.35993342,0.00021917,2]
[314521087,1708403439958,-500.0,0.00021917,2]
[314521089,1708403439968,-1288.54,0.00021917,2]
[314521091,1708403439977,-500.0,0.00021917,2]
[314521094,1708403439986,-2453.48,0.00021917,2]
[314521096,1708403439996,-500.0,0.00021917,2]
[314521098,1708403440005,-500.0,0.00021917,2]
[314521100,1708403440014,-500.0,0.00021917,2]
[314521102,1708403440023,-500.0,0.00021917,2]
[314521104,1708403440032,-500.0,0.00021917,2]
[314521106,1708403440041,-504.63,0.00021917,2]
[314521108,1708403440050,-500.0,0.00021917,2]
[314521110,1708403440059,-500.0,0.00021917,2]
[314521111,1708403440069,-350.63978889,0.00021917,2]
[314521114,1708403440079,-500.0,0.00021917,2]
[314521116,1708403440088,-500.0,0.00021917,2]
[314521117,1708403440097,-500.0,0.00021917,2]
[314521120,1708403440107,-606.80456975,0.00021917,2]
[314521122,1708403440116,-500.0,0.00021917,2]
[314521124,1708403440125,-500.0,0.00021917,2]
[314521126,1708403440135,-500.0,0.00021917,2]
[314521128,1708403440144,-500.0,0.00021917,2]
[314521130,1708403440153,-500.0,0.00021917,2]
[314521132,1708403440162,-503.9168682,0.00021917,2]
[314521135,1708403440171,-667.09,0.00021917,2]
[314521137,1708403440180,-500.0,0.00021917,2]
[314521138,1708403440190,-588.91482314,0.00021917,2]
[314521140,1708403440200,-641.44,0.00021917,2]
[314521142,1708403440210,-500.0,0.00021917,2]
[314521144,1708403440222,-581.27271086,0.00021917,2]